Workbook

Sheet Box3 2024
B1: jaar | C1: jaar | D1: jaar | E1: jaar
B2: 2023 | C2: 2024 | D2: 2025 | E2: 2026
A3: Vermogen in Box 3 op 1 januari
A4: Spaargeld en banktegoeden | B4: 500,000.00 | C4: 500,000.00 | D4: 500,000.00 | E4: 500,000.00
A5: Beleggingen en andere bezittingen,w.o. 2e woning | B5: 275,000.00 | C5: 275,000.00 | D5: 275,000.00 | E5: 275,000.00 | F5: minus eventueel vrijstelling groene beleggingen, € 71.251 per persoon (2024)
A6: Schulden | B6: 100,000.00 | C6: 100,000.00 | D6: 100,000.00 | E6: 100,000.00
A7: aantal personen (max 2) | B7: 2 | C7: 2 | D7: 2 | E7: 2
A8: Uw aandeel in de grondslag sparen en beleggen | B8: 50% | C8: 50% | D8: 50% | E8: 50% | F8: dat mag je over de beide partners verdelen
E9: voorlopig
A10: fictieve rendementspercentages | B10: tarief 2023 | C10: tarief 2024 | D10: tarief 2025 | E10: tarief 2026 | F10: zie : https://www.belastingdienst.nl/wps/wcm/connect/nl/box-3/content/box-3-inkomen-op-voorlopige-aanslag-2024
A11: Spaargeld en banktegoeden | B11: 0.92% | C11: 1.44% | D11: 1.37% | E11: 1.28% | F11: Zie: https://www.belastingdienst.nl/wps/wcm/connect/nl/box-3/content/berekening-box-3-inkomen-2023
A12: Beleggingen en andere bezittingen | B12: 6.17% | C12: 6.04% | D12: 5.88% | E12: 6.00%
A13: Schulden | B13: 2.46% | C13: 2.61% | D13: 2.70% | E13: 2.70%
A15: Vaste aftrek schulden per persoon | B15: 3,400.00 | C15: 3,700.00 | D15: 3,800.00 | E15: 3,800.00
A16: heffingsvrij vermogen per persoon | B16: 57,000.00 | C16: 57,000.00 | D16: 57,684.00 | E16: 59,357.00
A17: belastingpercentage Box3 | B17: 32% | C17: 36% | D17: 36% | E17: 36%
A19: Stap 1: Bereken het belastbaar rendement
A20: Rendement Spaargeld en banktegoeden | B20: =ROUNDDOWN(+B4*B11,0) -> 4,600.00 | C20: 7,200.00 | D20: 6,850.00 | E20: =ROUNDDOWN(+E4*E11,0) -> 6,400.00
A21: Rendement Beleggingen en andere bezittingen | B21: 16,967.00 | C21: 16,610.00 | D21: 16,170.00 | E21: =ROUNDDOWN(+E5*E12,0) -> 16,500.00
A22: Rente voor aftrekbare schulden | B22: =IF(ROUNDUP(+(B6-(B7*B15))*B13,0)<0,0,(ROUNDUP(+(B6-B7*B15)*B13,0))) -> 2,293.00 | C22: =IF(ROUNDUP(+(C6-(C7*C15))*C13,0)<0,0,(ROUNDUP(+(C6-C7*C15)*C13,0))) -> 2,417.00 | D22: =IF(ROUNDUP(+(D6-(D7*D15))*D13,0)<0,0,(ROUNDUP(+(D6-D7*D15)*D13,0))) -> 2,495.00 | E22: =IF(ROUNDUP(+(E6-(E7*E15))*E13,0)<0,0,(ROUNDUP(+(E6-E7*E15)*E13,0))) -> 2,495.00
A23: Totaal belastbaar rendement | B23: =+B20+B21-B22 -> 19,274.00 | C23: =+C20+C21-C22 -> 21,393.00 | D23: =+D20+D21-D22 -> 20,525.00 | E23: =+E20+E21-E22 -> 20,405.00
A25: Stap 2: Bereken de rendementsgrondslag
A26: Alle bezittingen | B26: =+B4+B5 -> 775,000.00 | C26: =+C4+C5 -> 775,000.00 | D26: =+D4+D5 -> 775,000.00 | E26: =+E4+E5 -> 775,000.00
A27: Aftrekbare schulden | B27: =IF((B6-(B7*B15))<0,0,(B6-(B7*B15))) -> 93,200.00 | C27: =IF((C6-(C7*C15))<0,0,(C6-(C7*C15))) -> 92,600.00 | D27: =IF((D6-(D7*D15))<0,0,(D6-(D7*D15))) -> 92,400.00 | E27: =IF((E6-(E7*E15))<0,0,(E6-(E7*E15))) -> 92,400.00
A28: Rendementsgrondslag | B28: =ROUNDDOWN((+B26-B27),0) -> 681,800.00 | C28: =ROUNDDOWN((+C26-C27),0) -> 682,400.00 | D28: =ROUNDDOWN((+D26-D27),0) -> 682,600.00 | E28: =ROUNDDOWN((+E26-E27),0) -> 682,600.00
A30: Stap 3: bereken de grondslag sparen en beleggen
A31: Rendementsgrondslag (uitkomst stap 2) | B31: =+B28 -> 681,800.00 | C31: =+C28 -> 682,400.00 | D31: =+D28 -> 682,600.00 | E31: =+E28 -> 682,600.00
A32: Totaal heffingsvrij vermogen | B32: =+B16*B7 -> 114,000.00 | C32: =+C16*C7 -> 114,000.00 | D32: =+D16*D7 -> 115,368.00 | E32: =+E16*E7 -> 118,714.00
A33: Grondslag sparen en beleggen (te verdelen over partners) | B33: =IF((B31-B32)<0,0,(B31-B32)) -> 567,800.00 | C33: =IF((C31-C32)<0,0,(C31-C32)) -> 568,400.00 | D33: =IF((D31-D32)<0,0,(D31-D32)) -> 567,232.00 | E33: =IF((E31-E32)<0,0,(E31-E32)) -> 563,886.00
A34: Uw aandeel in de grondslag sparen en beleggen | B34: =+B33*B8 -> 283,900.00 | C34: =+C33*C8 -> 284,200.00 | D34: =+D33*D8 -> 283,616.00 | E34: =+E33*E8 -> 281,943.00
A36: stap 4: bereken uw aandeel in de rendementsgrondslag
A37: Uw aandeel in de grondslag sparen en beleggen | B37: =+B34 -> 283,900.00 | C37: =+C34 -> 284,200.00 | D37: =+D34 -> 283,616.00 | E37: =+E34 -> 281,943.00
A38: Rendementsgrondslag (uikomst stap 2) | B38: =+B28 -> 681,800.00 | C38: =+C28 -> 682,400.00 | D38: =+D28 -> 682,600.00 | E38: =+E28 -> 682,600.00
A39: Percentage afgerond op 2 decimalen achter de komma | B39: =ROUND((+B37/B38),4) -> 41.64% | C39: =ROUND((+C37/C38),4) -> 41.65% | D39: =ROUND((+D37/D38),4) -> 41.55% | E39: =ROUND((+E37/E38),4) -> 41.30%
A41: Stap 5: bereken uw voordeel uit sparen en beleggen
A42: Totaal belastbaar rendement (uitkomst stap 1) | B42: =+B23 -> 19,274.00 | C42: =+C23 -> 21,393.00 | D42: =+D23 -> 20,525.00 | E42: =+E23 -> 20,405.00
A43: Percentage afgerond op 2 decimalen achter de komma | B43: =+B39 -> 41.64% | C43: =+C39 -> 41.65% | D43: =+D39 -> 41.55% | E43: =+E39 -> 41.30%
A44: Voordeel uit sparen en beleggen, afgerond naar beneden | B44: =ROUNDDOWN((+B42*B43),0) -> 8,025.00 | C44: =ROUNDDOWN((+C42*C43),0) -> 8,910.00 | D44: =ROUNDDOWN((+D42*D43),0) -> 8,528.00 | E44: =ROUNDDOWN((+E42*E43),0) -> 8,427.00
A46: Stap 6: bereken de belasting in box3 van 1 persoon
A47: Voordeel uit sparen en beleggen, afgerond naar beneden | B47: =+B44 -> 8,025.00 | C47: =+C44 -> 8,910.00 | D47: =+D44 -> 8,528.00 | E47: =+E44 -> 8,427.00
A48: belastingpercentage Box3 | B48: =+B17 -> 32% | C48: =+C17 -> 36% | D48: =+D17 -> 36% | E48: =+E17 -> 36%
A49: te betalen belasting Box3, afgrond naar beneden | B49: =ROUNDDOWN((+B47*B48),0) -> 2,568.00 | C49: =ROUNDDOWN((+C47*C48),0) -> 3,207.00 | D49: =ROUNDDOWN((+D47*D48),0) -> 3,070.00 | E49: =ROUNDDOWN((+E47*E48),0) -> 3,033.00
A52: disclaimer: aan deze berekening kunnen geen rechten ontleend worden.
